Workbook

Sheet Asiento 1
A1: PRIMER ASIENTO DE CIERRE - UTILIDAD DE VENTA
C2: Saldo en el Libro Mayor | E2: Registro de Cierre
A3: Fecha | B3: Cuentas Contables. | C3: Debe | D3: Haber | E3: Debe | F3: Haber | G3: Resultado
A4: 2019-12-31 | B4: Venta | D4: 700,000.00 | E4: 700,000.00 | G4: Cerrado
B5: Devolucion en ventas | C5: 6,000.00 | F5: 6,000.00 | G5: Cerrado
B6: Descuento en ventas | C6: 4,000.00 | F6: 4,000.00 | G6: Cerrado
B7: Bonif. Y Reb. En ventas | C7: 5,000.00 | F7: 5,000.00 | G7: Cerrado
B8: Perdida y Ganancia | F8: 685,000.00 | G8: Cta. Transitorio
C9: =SUM(C4:C8) -> 15,000.00 | D9: =SUM(D4:D8) -> 700,000.00 | E9: 700,000.00 | F9: 700,000.00

Sheet Asiento 2
A1: SEGUNDO ASIENTO DE CIERRE - DETERMINAR COSTO DE VENTA
C2: Saldo en el Libro Mayor | E2: Registro de Cierre
A3: Fecha | B3: Cuentas Contables. | C3: Debe | D3: Haber | E3: Debe | F3: Haber | G3: Resultado
A4: 2019-12-31 | B4: Costo de Ventas | E4: 518,000.00 | G4: Abierto
B5: Inventarios de mercaderia | C5: 300,000.00 | F5: 300,000.00 | G5: Cerrado
B6: Compras | C6: 210,000.00 | F6: 210,000.00 | G6: Cerrado
B7: Fletes en compras | C7: 3,000.00 | F7: 3,000.00 | G7: Cerrado
B8: Gastos de importacion | C8: 5,000.00 | F8: 5,000.00 | G8: Cerrado
C9: =SUM(C4:C8) -> 518,000.00 | D9: =SUM(D4:D8) -> 0 | E9: 518,000.00 | F9: 518,000.00
C12: Saldo en el Libro Mayor | E12: Registro de Cierre
A13: Fecha | B13: Cuentas Contables. | C13: Debe | D13: Haber | E13: Debe | F13: Haber | G13: Resultado
A14: 2019-12-31 | B14: Devolucion en compras | D14: 12,000.00 | E14: 12,000.00 | G14: Cerrado
B15: Descuento en compras | D15: 4,000.00 | E15: 4,000.00 | G15: Cerrado
B16: Bonif. En Compras | D16: 2,000.00 | E16: 2,000.00 | G16: Cerrado
B17: Inventario Final | D17: 230,000.00 | E17: 230,000.00 | G17: Cerrado
B18: Costo de Venta | F18: 248,000.00 | G18: Abierto
C19: =SUM(C14:C18) -> 0 | D19: =SUM(D14:D18) -> 248,000.00 | E19: =SUM(E14:E18) -> 248,000.00 | F19: =SUM(F14:F18) -> 248,000.00

Sheet Asiento 3
A1: TERCER ASIENTO DE CIERRE - CUENTAS DE COSTO Y GASTOS DE OPERACIONES
C2: Saldo en el Libro Mayor | E2: Registro de Cierre
A3: Fecha | B3: Cuentas Contables. | C3: Debe | D3: Haber | E3: Debe | F3: Haber | G3: Resultado
A4: 2019-12-31 | B4: Perdida V Ganancia | E4: 474,500.00 | G4: Cta. Transitorio
B5: Costo de venta | C5: 270,000.00 | F5: 270,000.00 | G5: Cerrado
B6: Sueldo de vendedores | C6: 60,000.00 | F6: 60,000.00 | G6: Cerrado
B7: Comisiones sobre venta | C7: 20,000.00 | F7: 20,000.00 | G7: Cerrado
B8: Propaganda | C8: 12,000.00 | F8: 12,000.00 | G8: Cerrado
B9: Dep. de vehiculo depto. De venta | C9: 6,000.00 | F9: 6,000.00 | G9: Cerrado
B10: Impuestos municipales | C10: 10,000.00 | F10: 10,000.00 | G10: Cerrado
B11: Fletes de ventas | C11: 4,000.00 | F11: 4,000.00 | G11: Cerrado
B12: Gastos de embalaje | C12: 1,300.00 | F12: 1,300.00 | G12: Cerrado
B13: Otros gastos de ventas | C13: 3,000.00 | F13: 3,000.00 | G13: Cerrado
B14: Sueldo Dto. Administracion | C14: 50,000.00 | F14: 50,000.00 | G14: Cerrado
B15: Gastos de Alquiler | C15: 12,000.00 | F15: 12,000.00 | G15: Cerrado
B16: Gastos Generales | C16: 18,000.00 | F16: 18,000.00 | G16: Cerrado
B17: Depre. Mobiliario | C17: 5,000.00 | F17: 5,000.00 | G17: Cerrado
B18: Perdidas en cuentas malas | C18: 2,000.00 | F18: 2,000.00 | G18: Cerrado
B19: Gastos de art. De escritorio | C19: 1,200.00 | F19: 1,200.00 | G19: Cerrado
C20: =SUM(C4:C19) -> 474,500.00 | D20: =SUM(D4:D19) -> 0 | E20: 474,500.00 | F20: 474,500.00

Sheet Asiento 4
A1: CUARTO ASIENTO DE CIERRE - OTROS INGRESOS
C2: Saldo en el Libro Mayor | E2: Registro de Cierre
A3: Fecha | B3: Cuentas Contables. | C3: Debe | D3: Haber | E3: Debe | F3: Haber | G3: Resultado
A4: 2019-12-31 | B4: Perdida y Ganancia | F4: 20,000.00 | G4: Cta. Transitorio
B5: Alquileres Ganados | D5: 7,000.00 | E5: 7,000.00 | G5: Cerrado
B6: Intereses Ganados | D6: 5,000.00 | E6: 5,000.00 | G6: Cerrado
B7: Ganacia venta de mobiliario | D7: 4,000.00 | E7: 4,000.00 | G7: Cerrado
B8: Cuentas malas recuperadas | D8: 3,000.00 | E8: 3,000.00 | G8: Cerrado
B9: Comisiones ganados | D9: 1,000.00 | E9: 1,000.00 | G9: Cerrado
C10: =SUM(C4:C9) -> 0 | D10: =SUM(D4:D9) -> 20,000.00 | E10: 20,000.00 | F10: 20,000.00

Sheet Asiento 5
A1: QUINTO ASIENTO DE CIERRE - OTROS EGRESOS O GASTOS
C2: Saldo en el Libro Mayor | E2: Registro de Cierre
A3: Fecha | B3: Cuentas Contables. | C3: Debe | D3: Haber | E3: Debe | F3: Haber | G3: Resultado
A4: 2019-12-31 | B4: Perdida y Ganancia | E4: 13,500.00 | G4: Cta. Transitorio
B5: Intereses gastos | C5: 9,000.00 | F5: 9,000.00 | G5: Cerrado
B6: Perdida venta de vehiculo | C6: 3,500.00 | F6: 3,500.00 | G6: Cerrado
B7: Perdidas efectos en litigio | C7: 1,000.00 | F7: 1,000.00 | G7: Cerrado
C8: =SUM(C4:C7) -> 13,500.00 | D8: =SUM(D4:D7) -> 0 | E8: =SUM(E4:E7) -> 13,500.00 | F8: =SUM(F4:F7) -> 13,500.00

Sheet Asiento 6
A1: SEXTO ASIENTO DE CIERRE - OTROS GASTOS EXTRAORDINARIO
C2: Saldo en el Libro Mayor | E2: Registro de Cierre
A3: Fecha | B3: Cuentas Contables. | C3: Debe | D3: Haber | E3: Debe | F3: Haber | G3: Resultado
A4: 2019-12-31 | B4: Perdida y Ganancia | E4: 70,000.00 | G4: Cta. Transitorio
B5: Perdida en incendio maquinaria | C5: 40,000.00 | F5: 40,000.00 | G5: Cerrado
B6: Perdida en robo mercancia | C6: 30,000.00 | F6: 30,000.00 | G6: Cerrado
C7: =SUM(C4:C6) -> 70,000.00 | D7: =SUM(D4:D6) -> 0 | E7: =SUM(E4:E6) -> 70,000.00 | F7: =SUM(F4:F6) -> 70,000.00

Sheet Asiento 7
A1: SEPTIMO ASIENTO DE CIERRE - IMPUESTO SOBRE LA RENTA
C2: Saldo en el Libro Mayor | E2: Registro de Cierre
A3: Fecha | B3: Cuentas Contables. | C3: Debe | D3: Haber | E3: Debe | F3: Haber | G3: Resultado
A4: 2019-12-31 | B4: Perdida y Ganancia | E4: 44,100.00 | G4: Cta. Transitorio
B5: Impuesto Sobre la Renta (30%) | C5: 44,100.00 | F5: 44,100.00 | G5: Cerrado
C6: =SUM(C4:C5) -> 44,100.00 | D6: =SUM(D4:D5) -> 0 | E6: =SUM(E4:E5) -> 44,100.00 | F6: =SUM(F4:F5) -> 44,100.00

Sheet PERDIDA Y GANANCIA
A1: PERDIDA Y GANANCIA
A2: RESUMEN PARA TERMINAR LA UTILIDAD NETA DEL PERIODO
C3: Resumen de Registros
A4: Fecha | B4: Descripcion | C4: Debe | D4: Haber | E4: Descripcion
A5: 2019-12-31 | B5: Total Gasto de Operación | C5: 474,500.00
B6: Total de Otros Gastos | C6: 13,500.00
B7: Total Otros Egresos Extraordinario | C7: 70,000.00
B8: Impuesto Sobre la Renta (IR) | C8: 44,100.00
D9: 685,000.00 | E9: Utilidad Bruta sobre venta
D10: 20,000.00 | E10: Otros ingresos
A11: Total | C11: =SUM(C5:C10) -> 602,100.00 | D11: =SUM(D5:D10) -> 705,000.00 | E11: =SUM(E5:E10) -> 0
B12: Saldo para repartir entre los Socios o Propietario. | D12: =D11-C11 -> 102,900.00

Sheet Asiento 8
A1: OCTAVO ASEINTO DE CIERRE DE PERDIDA Y GANANCIA
D2: REGISTRO CONTABLE
A3: Fecha | B3: Cuentas Contables | C3: Parcial | D3: Debe | E3: Haber | F3: Resultado
A4: 2020-03-31 | B4: Perdida y Ganancia | D4: 102,900.00 | F4: Cerrado
B5: Capital Social | E5: =SUM(C6:C8) -> 82,320.00 | F5: Dist. De Utilidad
B6: Cuenta personal Socio "A" (30%) | C6: 24,696.00 | F6: Dist. De Utilidad
B7: Cuenta personal Socio "B" (40%) | C7: 32,928.00 | F7: Dist. De Utilidad
B8: Cuenta personal Socio "C" (30%) | C8: 24,696.00 | F8: Dist. De Utilidad
B9: Reserva de Superavit | E9: =C10 -> 20,580.00 | F9: Reserva para Compra
B10: Reserva para compra de maquinaria | C10: 20,580.00 | F10: Reserva para Compra
B11: Suman Iguales | C11: =SUM(C4:C10) -> 102,900.00 | D11: =SUM(D4:D10) -> 102,900.00 | E11: =SUM(E4:E10) -> 102,900.00 | F11: =SUM(F4:F10) -> 0

Sheet Asiento 9
A1: NOVENO ASEINTO DE CIERRE - PAGO DE UTILIDAD DEL PERIODO A LOS SOCIOS
D2: REGISTRO CONTABLE
A3: Fecha | B3: Cuentas Contables | C3: Parcial | D3: Debe | E3: Haber | F3: Resultado
A4: 2020-03-31 | B4: Caja y Banco | E4: =SUM(C6:C8) -> 82,320.00 | F4: Pago a los Socios
B5: Capital Social | D5: =SUM(C6:C8) -> 82,320.00 | F5: Dist. De Utilidad
B6: Cuenta personal Socio "A" (30%) | C6: 24,696.00 | F6: Dist. De Utilidad
B7: Cuenta personal Socio "B" (40%) | C7: 32,928.00 | F7: Dist. De Utilidad
B8: Cuenta personal Socio "C" (30%) | C8: 24,696.00 | F8: Dist. De Utilidad
B9: Suman Iguales | C9: =SUM(C4:C8) -> 82,320.00 | D9: =SUM(D4:D8) -> 82,320.00 | E9: =SUM(E4:E8) -> 82,320.00 | F9: =SUM(F4:F8) -> 0
